bitfinex/quotes_BTCUSD_20250408
["timestamp","ask_amount","ask_price","bid_price","bid_amount"]
[1744107416433,0.266016,78943.0,78942.0,0.30894958]
[1744107417087,0.01304125,78944.0,78943.0,0.02720785]
[1744107417247,0.01304125,78944.0,78943.0,0.45524668]
[1744107417444,0.01304125,78944.0,78943.0,0.45271349]
[1744107417445,0.0003364,78944.0,78943.0,0.45271349]
[1744107417725,0.0003364,78944.0,78943.0,0.50191349]
[1744107418005,0.0003364,78944.0,78943.0,0.54141214]
[1744107418348,0.0003364,78944.0,78943.0,0.55327126]
[1744107418600,0.0033364,78944.0,78943.0,0.55327126]
[1744107418764,0.0043364,78944.0,78943.0,0.55327126]
[1744107418966,0.0003362,78970.0,78950.0,0.52563085]
[1744107418967,0.0101471,78970.0,78950.0,0.52563085]
[1744107419194,0.0003362,78970.0,78950.0,1.10578814]
[1744107419350,0.0129992,78970.0,78950.0,1.10578814]
[1744107419759,0.0129992,78970.0,78950.0,1.07814861]
[1744107420198,0.012664,78963.0,78950.0,1.11767822]
[1744107420399,0.012663,78964.0,78950.0,1.0782762]
[1744107420603,0.253293,78960.0,78950.0,1.0802762]
[1744107420817,0.012664,78963.0,78950.0,1.0802762]
[1744107421221,0.593275,78966.0,78950.0,1.0802762]
[1744107421428,0.605938,78966.0,78950.0,1.10398629]
[1744107421669,0.253285,78963.0,78950.0,1.10398629]
[1744107421829,0.0013364,78951.0,78950.0,1.10898629]
[1744107422027,0.0013364,78951.0,78950.0,1.00002229]
[1744107433017,0.0013364,78951.0,78950.0,0.99998229]
[1744107435462,0.0013364,78951.0,78950.0,2.00346229]
[1744107436797,0.0140024,78951.0,78950.0,1.46675544]
[1744107437026,0.0013364,78951.0,78950.0,1.33778317]
[1744107437225,0.0013364,78951.0,78950.0,1.48210317]
[1744107437462,0.0013364,78951.0,78950.0,1.52740317]
[1744107438090,0.0013364,78951.0,78950.0,1.57320317]
[1744107439916,0.0013364,78951.0,78950.0,1.57234888]
[1744107440112,0.0140024,78951.0,78950.0,1.31670803]
[1744107440318,0.0140024,78951.0,78950.0,1.17238803]
[1744107440541,0.0140024,78951.0,78950.0,1.31670803]
[1744107440841,0.0140024,78951.0,78950.0,1.33124888]
[1744107441912,0.3540024,78951.0,78950.0,1.33124888]
[1744107442543,0.3540024,78951.0,78950.0,1.18692888]
[1744107442745,0.3540024,78951.0,78950.0,1.33124888]
[1744107443547,0.3540024,78951.0,78950.0,1.18692888]
[1744107443747,0.3540024,78951.0,78950.0,1.33124888]
[1744107444625,0.3540024,78951.0,78950.0,1.18692888]
[1744107444827,0.3540024,78951.0,78950.0,1.33124888]
[1744107445238,0.3540024,78951.0,78950.0,1.31943717]
[1744107445445,0.3540024,78951.0,78950.0,1.17511717]
[1744107445695,0.3540024,78951.0,78950.0,1.31943717]
[1744107446105,0.3540024,78951.0,78950.0,1.30489632]
[1744107446305,0.3540024,78951.0,78950.0,1.31943717]
[1744107446883,0.3540024,78951.0,78950.0,1.31743717]
[1744107447107,0.3530024,78951.0,78950.0,1.31243717]
[1744107447315,0.3530024,78951.0,78950.0,1.31343717]
[1744107447316,0.3540024,78951.0,78950.0,1.31343717]
[1744107447525,0.0013364,78951.0,78950.0,1.31343717]
[1744107448117,0.0140024,78951.0,78950.0,1.31343717]
[1744107452512,0.0140024,78951.0,78950.0,1.16911717]
[1744107452652,0.0140024,78951.0,78950.0,1.31331717]
[1744107453035,0.0013364,78951.0,78950.0,1.31331717]
[1744107453811,0.0013364,78951.0,78950.0,1.37338317]
[1744107454020,0.0013364,78951.0,78950.0,1.41888317]
[1744107454358,0.0013364,78951.0,78950.0,1.4307231]
[1744107455388,0.0013364,78951.0,78950.0,1.47016045]
[1744107455589,0.0003364,78951.0,78950.0,1.46916045]
[1744107456095,0.0003364,78951.0,78950.0,1.47216045]
[1744107456474,0.0003364,78951.0,78950.0,1.47616045]
[1744107460670,0.0003364,78951.0,78950.0,1.89056045]
[1744107463321,0.0003364,78951.0,78950.0,1.88756045]
[1744107464271,0.0003364,78951.0,78950.0,1.88356045]
[1744107464476,0.0013364,78951.0,78950.0,1.88956045]
[1744107464701,0.0023364,78951.0,78950.0,1.89656045]
[1744107465317,0.0013364,78951.0,78950.0,1.88956045]
[1744107465529,0.0023364,78951.0,78950.0,1.89556045]
[1744107467605,0.0013364,78951.0,78950.0,1.88956045]
[1744107467809,0.0013364,78951.0,78950.0,1.89256045]
[1744107468010,0.0013364,78951.0,78950.0,1.90156045]
[1744107471546,0.0013364,78951.0,78950.0,2.0370196]
[1744107471667,0.0013364,78951.0,78950.0,1.99758225]
[1744107472110,0.0013364,78951.0,78950.0,2.0121231]
[1744107472447,0.0013364,78951.0,78950.0,1.99758225]
[1744107472633,0.0013364,78951.0,78950.0,2.0031231]
[1744107472971,0.0013364,78951.0,78950.0,2.0111231]
[1744107474037,0.0013364,78951.0,78950.0,1.9420571]
[1744107474272,0.0003364,78951.0,78950.0,1.73781625]
[1744107474475,0.0013364,78951.0,78950.0,1.90168225]
[1744107474654,0.0013364,78951.0,78950.0,1.9162231]
[1744107478275,0.0013364,78951.0,78950.0,1.9613231]
[1744107480848,0.0140024,78951.0,78950.0,1.3391571]
[1744107481087,0.0013364,78951.0,78950.0,1.32461625]
[1744107481357,0.0013364,78951.0,78950.0,1.3391571]
[1744107481732,0.0003364,78951.0,78950.0,1.33298317]
[1744107481948,0.0003364,78951.0,78950.0,1.37008317]
[1744107482149,0.0023364,78951.0,78950.0,1.37008317]
[1744107482480,0.0023364,78951.0,78950.0,1.41948317]
[1744107483425,0.0003364,78951.0,78950.0,1.37008317]
[1744107483627,0.0003364,78951.0,78950.0,1.32498317]
[1744107483822,0.0003364,78951.0,78950.0,1.32798317]
[1744107484179,0.0003364,78951.0,78950.0,1.15657632]
[1744107484377,0.0003364,78951.0,78950.0,1.30077632]
[1744107484605,0.0003364,78951.0,78950.0,1.31531717]
[1744107484756,0.0003364,78951.0,78950.0,1.31931717]
[1744107486119,0.0003364,78951.0,78950.0,1.33198317]
[1744107486799,0.0003364,78951.0,78950.0,1.37708317]
[1744107489926,0.0003364,78951.0,78950.0,1.49064533]
[1744107490232,0.0003364,78951.0,78950.0,1.5301216]
[1744107490410,0.0003364,78951.0,78950.0,1.49064533]
[1744107491085,0.0003364,78951.0,78950.0,1.53012091]
[1744107491307,0.0003364,78951.0,78950.0,1.49064533]
[1744107491581,0.0003364,78951.0,78950.0,1.34644533]
[1744107491785,0.0003364,78951.0,78950.0,1.49064533]
[1744107492094,0.0003364,78951.0,78950.0,1.53011984]
[1744107492763,0.0003364,78951.0,78950.0,1.41655768]
[1744107493751,0.0003364,78951.0,78950.0,1.46315768]
[1744107495522,0.0003364,78951.0,78950.0,1.87755768]
[1744107500556,0.0003364,78951.0,78950.0,1.87055768]
[1744107500761,0.0013364,78951.0,78950.0,1.87655768]
[1744107501095,0.0013364,78951.0,78950.0,1.88155768]
[1744107505679,0.0013364,78951.0,78950.0,1.89339918]
[1744107511168,0.0013364,78951.0,78950.0,1.88155768]
[1744107521398,4e-07,78951.0,78950.0,1.88155768]
[1744107532261,4e-07,78951.0,78950.0,1.73735768]
[1744107532490,4e-07,78951.0,78950.0,1.88151768]
[1744107532727,4e-07,78951.0,78950.0,1.93981768]
[1744107534749,0.00838175,78951.0,78950.0,1.93981768]
[1744107534943,0.00838175,78951.0,78950.0,1.79565768]
[1744107535194,0.00838175,78951.0,78950.0,1.93981768]
[1744107535860,0.00838175,78951.0,78950.0,1.79565768]
[1744107536077,0.00838175,78951.0,78950.0,1.93981768]
[1744107536495,0.00838175,78951.0,78950.0,1.97407683]
[1744107536695,0.00838175,78951.0,78950.0,1.98861768]
[1744107537574,0.00838175,78951.0,78950.0,2.03481768]
[1744107537821,0.00104771,78951.0,78950.0,2.03481768]
[1744107540359,1.1e-07,78957.0,78956.0,0.26597]
[1744107540568,1.1e-07,78957.0,78956.0,0.495044]
[1744107541657,0.00100011,78957.0,78956.0,0.53675409]
[1744107541852,1.1e-07,78957.0,78956.0,0.53729719]
[1744107542075,1.1e-07,78957.0,78956.0,0.53529719]
[1744107542348,0.0003362,78965.0,78964.0,0.510942]
[1744107542527,0.0003362,78965.0,78964.0,0.835376]
[1744107543521,0.0003362,78965.0,78964.0,0.84721351]
[1744107544185,0.0003362,78965.0,78964.0,0.8709236]
[1744107544509,0.0003362,78965.0,78964.0,0.8789236]
[1744107545186,0.0003362,78965.0,78964.0,0.8759236]
[1744107545328,0.0003362,78965.0,78964.0,0.8809236]
[1744107545524,0.0003362,78965.0,78964.0,0.8759236]
[1744107545724,0.0003362,78965.0,78964.0,1.2963236]
[1744107545923,0.0003362,78965.0,78964.0,1.28448609]
[1744107550185,0.0003362,78965.0,78964.0,1.12578524]
[1744107550343,0.0003362,78965.0,78964.0,1.26990524]
[1744107550543,0.0003362,78965.0,78964.0,1.18944609]
[1744107550972,0.0003362,78965.0,78964.0,1.17490524]
[1744107551526,0.0003362,78965.0,78964.0,1.18944609]
[1744107552406,0.0003362,78965.0,78964.0,1.14997158]
[1744107554134,0.0003362,78965.0,78964.0,1.14497158]
[1744107554250,0.0003362,78965.0,78964.0,1.13897158]
[1744107554450,0.0003362,78965.0,78964.0,0.29708873]
[1744107554682,0.0003362,78965.0,78964.0,0.29808873]
[1744107554910,0.0003362,78965.0,78964.0,0.31262958]
[1744107555121,0.0003362,78965.0,78964.0,0.32729258]
[1744107555273,0.0003362,78965.0,78964.0,0.32529258]
[1744107555719,0.0003362,78965.0,78964.0,0.32629258]
[1744107556422,0.0003362,78965.0,78964.0,0.32229258]
[1744107556621,0.0003362,78965.0,78964.0,0.32429258]
[1744107556943,0.0003362,78965.0,78964.0,0.32329258]
[1744107557178,0.0003362,78965.0,78964.0,0.32129258]
[1744107557353,0.0003362,78965.0,78964.0,0.32329258]
[1744107563903,0.0003362,78965.0,78964.0,0.31062958]
[1744107564918,0.0436362,78965.0,78964.0,0.31062958]
[1744107565397,0.0003362,78965.0,78964.0,0.31062958]
[1744107566482,0.0003362,78965.0,78964.0,0.32329258]
[1744107571419,0.0003362,78965.0,78964.0,0.31062958]
[1744107573194,0.0003362,78965.0,78964.0,0.42424873]
[1744107576092,0.0003362,78965.0,78964.0,0.48311173]
[1744107576762,0.0003362,78965.0,78964.0,0.43691173]
[1744107577125,0.0003362,78965.0,78964.0,0.32329258]
[1744107577322,0.0003362,78965.0,78964.0,0.32429258]
[1744107578169,0.0003362,78965.0,78964.0,0.32229258]
[1744107578364,0.0003362,78965.0,78964.0,0.32529258]
[1744107580884,0.0003362,78965.0,78964.0,0.31262958]
[1744107581493,0.0003362,78965.0,78964.0,0.57857158]
[1744107584402,0.0003362,78965.0,78964.0,0.62657158]
[1744107584776,0.0003362,78965.0,78964.0,1.08047582]
[1744107585566,0.0003362,78965.0,78964.0,1.07647582]
[1744107585953,0.0003362,78965.0,78964.0,1.08047582]
[1744107586377,0.0003362,78965.0,78964.0,1.07647582]
[1744107587177,0.0003362,78965.0,78964.0,1.07847582]
[1744107587411,0.0003362,78965.0,78964.0,1.07647582]
[1744107587864,0.0003362,78965.0,78964.0,1.08847582]
[1744107595002,0.0003362,78965.0,78964.0,1.22393497]
[1744107595497,0.0003362,78965.0,78964.0,1.23847582]
[1744107595898,0.0003362,78965.0,78964.0,1.19897158]
[1744107596364,0.0003362,78965.0,78964.0,1.23842746]
[1744107596496,0.0003362,78965.0,78964.0,1.19897158]
[1744107596714,0.0003362,78965.0,78964.0,1.23842581]
[1744107596921,0.0003362,78965.0,78964.0,1.19897158]
[1744107597399,0.0003362,78965.0,78964.0,1.05485158]
[1744107597617,0.0003362,78965.0,78964.0,1.23842607]
[1744107603916,0.0003362,78965.0,78964.0,1.25026347]
[1744107609270,0.0003362,78965.0,78964.0,1.29676347]
[1744107609640,6e-07,78971.0,78970.0,0.012663]
[1744107609844,6e-07,78971.0,78970.0,0.71388622]
[1744107610045,6e-07,78971.0,78970.0,0.71135438]
[1744107610899,6e-07,78971.0,78970.0,0.70851698]
[1744107611936,6e-07,78971.0,78970.0,0.73222707]
[1744107612515,6e-07,78971.0,78970.0,0.67672707]
[1744107613032,6e-07,78971.0,78970.0,0.79902707]
[1744107613445,6e-07,78971.0,78970.0,0.79002707]
[1744107613898,6e-07,78971.0,78970.0,0.79902707]
[1744107616308,6e-07,78971.0,78970.0,1.80214707]
[1744107617083,0.0126626,78971.0,78970.0,1.63948407]
[1744107617295,6e-07,78971.0,78970.0,1.63948407]
[1744107617979,6e-07,78971.0,78970.0,1.78948407]
[1744107618786,6e-07,78971.0,78970.0,1.78048407]
[1744107619054,6e-07,78971.0,78970.0,1.36608407]
[1744107619445,6e-07,78971.0,78970.0,1.36408407]
[1744107619878,6e-07,78971.0,78970.0,1.37308407]
[1744107621394,6e-07,78971.0,78970.0,1.38574707]
[1744107621748,6e-07,78971.0,78970.0,1.34629258]
[1744107622550,6e-07,78971.0,78970.0,1.33362958]
[1744107622805,0.2659196,78971.0,78970.0,1.16908873]
[1744107623027,0.6558196,78971.0,78970.0,1.31316873]
[1744107623239,0.6558196,78971.0,78970.0,1.32770958]
[1744107624068,0.6558196,78971.0,78970.0,1.31316873]
[1744107624615,0.6558196,78971.0,78970.0,1.32770958]
[1744107625163,0.6991196,78971.0,78970.0,1.32070958]
[1744107625566,0.6991196,78971.0,78970.0,1.31170958]
[1744107626097,0.6991196,78971.0,78970.0,1.28799949]
[1744107626687,0.6991196,78971.0,78970.0,0.28487949]
[1744107631273,0.7114833,78971.0,78970.0,0.28487949]
[1744107633648,0.7114833,78971.0,78952.0,0.15]
[1744107633649,0.34,78958.0,78953.0,0.01454085]
[1744107633854,0.012665,78955.0,78954.0,0.28491949]
[1744107634349,0.61849465,78955.0,78954.0,0.28491949]
[1744107634902,0.61849465,78955.0,78954.0,0.28891949]
[1744107635708,0.61849465,78955.0,78954.0,0.29091949]
[1744107636627,0.63101785,78955.0,78954.0,0.29091949]
[1744107637639,0.36504485,78955.0,78954.0,0.29091949]
[1744107638168,0.37770985,78955.0,78954.0,0.13225864]
[1744107638391,0.37770985,78955.0,78954.0,0.006]
[1744107639157,0.37770985,78955.0,78954.0,0.002]
[1744107639337,0.012666,78951.0,78950.0,0.00012759]
[1744107639541,0.61837008,78951.0,78950.0,0.14092708]
[1744107662857,0.61837008,78951.0,78950.0,0.16464075]
[1744107669756,0.61837008,78951.0,78950.0,0.02384126]
[1744107672272,0.61837008,78951.0,78950.0,0.00012759]
[1744107673143,0.35238308,78951.0,78950.0,0.17388623]
[1744107673344,0.01238308,78951.0,78950.0,0.20109308]
[1744107673554,0.01238308,78951.0,78950.0,0.24719308]
[1744107673754,0.0125232,78955.0,78951.0,0.01454085]
[1744107673954,0.01233027,78954.0,78953.0,0.01454085]
[1744107674180,0.01233027,78954.0,78953.0,0.29754449]
[1744107674589,0.4217928,78958.0,78954.0,0.012665]
[1744107674590,0.34,78957.0,78954.0,0.012665]
[1744107674735,0.4217928,78958.0,78957.0,0.012665]
[1744107674936,0.7617928,78958.0,78957.0,0.13892364]
[1744107675137,0.7518,78958.0,78957.0,0.13892364]
[1744107675550,0.4118,78958.0,78957.0,0.13892364]
[1744107675765,0.253281,78964.0,78958.0,0.01454085]
[1744107675766,0.34,78959.0,78958.0,0.01454085]
[1744107676049,0.34,78959.0,78958.0,0.14079949]
[1744107676585,0.34,78959.0,78958.0,0.18689949]
[1744107676790,0.593295,78960.0,78959.0,0.01454085]
[1744107676968,0.605959,78960.0,78959.0,0.15027845]
[1744107677166,0.352664,78960.0,78959.0,0.15027845]
[1744107677815,0.352664,78961.0,78959.0,0.17399011]
[1744107678120,0.352664,78961.0,78960.0,0.14079949]
[1744107679375,0.352664,78961.0,78960.0,0.16451115]
[1744107680129,0.36541298,78961.0,78960.0,0.16451115]
[1744107681367,0.37774858,78961.0,78960.0,0.16451115]
[1744107682756,0.36508458,78961.0,78960.0,0.16451115]
[1744107683063,0.02508458,78961.0,78960.0,0.16451115]
[1744107683385,0.37774858,78961.0,78960.0,0.16451115]
[1744107683954,0.37774858,78961.0,78960.0,0.02371166]
[1744107684152,0.37774858,78961.0,78950.0,0.16130302]
[1744107684153,0.605987,78951.0,78950.0,0.11380302]
[1744107684332,0.61843805,78951.0,78950.0,0.11380302]
[1744107686690,0.61843805,78951.0,78950.0,0.00012759]
[1744107695222,0.61843805,78951.0,78950.0,0.14092708]
[1744107697246,0.62043805,78951.0,78950.0,0.14092708]
[1744107697703,0.61843805,78951.0,78950.0,0.14092708]
[1744107697907,0.62043805,78951.0,78950.0,0.14092708]
[1744107698109,0.62343805,78951.0,78950.0,0.14092708]
[1744107702956,0.62343805,78951.0,78950.0,0.16460089]
[1744107703520,0.35745105,78951.0,78950.0,0.16460089]
[1744107703747,0.35745105,78951.0,78950.0,0.22406689]
[1744107703748,0.01745105,78951.0,78950.0,0.22406689]
[1744107703921,0.01745105,78951.0,78950.0,0.23353759]
[1744107704130,0.005,78951.0,78950.0,0.23353759]
[1744107704326,0.003,78951.0,78950.0,0.22087159]
[1744107704543,0.004,78951.0,78950.0,0.22087159]
[1744107704865,0.01330384,78951.0,78950.0,0.22087159]
[1744107705025,0.001,78951.0,78950.0,0.23353759]
[1744107705209,0.01530384,78951.0,78950.0,0.23353759]
[1744107705953,0.01530384,78951.0,78950.0,0.22187159]
[1744107706155,0.28129084,78951.0,78950.0,0.22187159]
[1744107706445,0.28129084,78951.0,78950.0,0.21240089]
[1744107706742,0.28029084,78951.0,78950.0,0.21240089]
[1744107706945,0.28029084,78951.0,78950.0,0.21440089]
[1744107708476,0.28029084,78951.0,78950.0,0.21240089]
[1744107708718,0.27829084,78951.0,78950.0,0.21140089]
[1744107709105,0.27829084,78951.0,78950.0,0.21240089]
[1744107709836,0.27829084,78951.0,78950.0,0.21440089]
[1744107710603,0.27829084,78951.0,78950.0,0.29710004]
[1744107710604,0.61829084,78951.0,78950.0,0.29710004]
[1744107711012,0.61829084,78951.0,78950.0,0.31164089]
[1744107711245,0.61829084,78951.0,78950.0,0.29710004]
[1744107711421,0.61829084,78951.0,78950.0,0.29410004]
[1744107711602,0.61829084,78951.0,78950.0,0.30864089]
[1744107712156,0.61829084,78951.0,78950.0,0.30964089]
[1744107714208,0.35230384,78951.0,78950.0,0.30964089]
[1744107714845,0.36496984,78951.0,78950.0,0.30964089]
[1744107717126,0.36496984,78951.0,78950.0,0.35754089]
[1744107718985,0.0098453,78958.0,78957.0,0.012665]
[1744107719117,0.0003362,78975.0,78970.0,0.28046385]
[1744107719316,0.0003362,78975.0,78970.0,1.65112249]
[1744107719522,0.0003362,78975.0,78970.0,1.66060188]
[1744107720157,0.0003362,78975.0,78970.0,1.66061243]
[1744107720567,2e-07,78975.0,78974.0,0.403247]
[1744107720770,2e-07,78975.0,78974.0,0.60460849]
[1744107721220,0.0003362,78979.0,78978.0,0.012661]
[1744107721522,0.0003362,78979.0,78978.0,0.45712719]
[1744107721675,0.0003362,78979.0,78978.0,0.49397306]
[1744107721860,0.00075887,78979.0,78978.0,0.50342159]
[1744107722311,0.002336,78989.0,78982.0,0.463783]
[1744107722536,0.002336,78989.0,78982.0,0.60471008]
[1744107722734,0.002336,78989.0,78982.0,0.61415861]
[1744107722978,0.002336,78989.0,78982.0,0.66305861]
[1744107723638,0.002336,78989.0,78988.0,0.32830385]
[1744107723801,0.002336,78989.0,78988.0,1.01296249]
[1744107723999,0.002336,78989.0,78988.0,1.02241102]
[1744107724406,0.002336,78989.0,78988.0,1.04608483]
[1744107724728,0.000336,78992.0,78990.0,0.463755]
[1744107724949,0.000336,78992.0,78990.0,0.61400302]
[1744107725485,0.000336,78992.0,78990.0,1.03776103]
[1744107725686,0.000336,79002.0,79001.0,0.403161]
[1744107725892,0.000336,79002.0,79001.0,1.75183849]
[1744107726095,0.000336,79002.0,79001.0,1.76128702]
[1744107726294,0.000336,79002.0,79001.0,1.81018702]
[1744107726512,0.253054,79035.0,79018.0,0.1989]
[1744107726765,0.01253023,79035.0,79018.0,0.79985109]
[1744107726961,0.02251863,79035.0,79018.0,0.79732049]
[1744107727165,0.01253023,79035.0,79018.0,0.79732049]
[1744107727386,0.012652,79033.0,79018.0,0.8209943]
[1744107727536,0.34,79032.0,79018.0,0.8209943]
[1744107728070,0.34,79032.0,79018.0,0.82812189]
[1744107728398,0.000168,79021.0,79018.0,0.83312189]
[1744107730397,0.000168,79021.0,79018.0,1.24752189]
[1744107731109,0.000168,79021.0,79018.0,1.25706937]
[1744107733554,0.000168,79021.0,79018.0,0.99130837]
[1744107733763,0.000168,79021.0,79018.0,1.00396337]
[1744107733969,0.000168,79021.0,79018.0,0.98028956]
[1744107734308,0.000168,79021.0,79018.0,1.98308956]
[1744107737329,0.000168,79021.0,79018.0,2.00646056]
[1744107737779,0.000168,79021.0,79018.0,1.99946056]
[1744107738169,0.35222748,79041.0,79036.0,0.253049]
[1744107738395,0.00899511,79040.0,79038.0,0.01454085]
[1744107738644,0.00899511,79040.0,79039.0,0.14079949]
[1744107739524,0.00899511,79040.0,79039.0,0.15345049]
[1744107739838,0.0098307,79043.0,79040.0,0.01454085]
[1744107739986,0.0098307,79043.0,79042.0,0.14079949]
[1744107740170,0.352651,79044.0,79042.0,0.14079949]
[1744107740373,0.34,79044.0,79043.0,0.12625864]
[1744107740695,0.352651,79044.0,79043.0,0.12625864]
[1744107741101,0.352651,79044.0,79043.0,0.12638623]
[1744107741505,0.3616408,79044.0,79043.0,0.12638623]
[1744107742964,0.37418301,79044.0,79043.0,0.12638623]
[1744107745325,0.3616408,79044.0,79043.0,0.12638623]
[1744107745529,0.0089898,79044.0,79043.0,0.12638623]
[1744107745929,0.35265,79046.0,79044.0,0.01454085]
[1744107746131,0.35265,79046.0,79045.0,0.14079949]
[1744107746870,0.36505939,79046.0,79045.0,0.14079949]
[1744107747033,0.35240939,79046.0,79045.0,0.14079949]
[1744107747233,0.35240939,79046.0,79045.0,0.28467949]
[1744107747773,0.36505939,79046.0,79045.0,0.29359937]
[1744107756450,0.37407633,79046.0,79045.0,0.29359937]
[1744107756652,0.02142633,79046.0,79045.0,0.30814022]
[1744107756882,0.02142633,79046.0,79045.0,0.32079122]
[1744107757030,0.00901694,79046.0,79045.0,0.36999122]
[1744107757234,0.002,79049.0,79048.0,0.01265]
[1744107757434,0.002,79049.0,79048.0,0.40645949]
[1744107757645,0.00950336,79049.0,79048.0,0.39380949]
[1744107757848,0.00950336,79049.0,79048.0,0.14079949]
[1744107758018,0.34950336,79049.0,79048.0,0.16426022]
[1744107759486,0.34950336,79049.0,79048.0,0.16526022]
[1744107759670,0.36215336,79049.0,79048.0,0.16526022]
[1744107761534,0.34950336,79049.0,79048.0,0.16526022]
[1744107761717,0.36215336,79049.0,79048.0,0.16526022]
[1744107762209,0.37458644,79049.0,79048.0,0.16526022]
[1744107766657,0.00950336,79049.0,79048.0,0.16526022]
[1744107766848,0.00950336,79049.0,79048.0,0.4277472]
[1744107767009,0.00950336,79049.0,79048.0,0.4403972]
[1744107767209,0.00950336,79049.0,79048.0,0.43092022]
[1744107767959,0.00950336,79049.0,79048.0,0.16526022]
[1744107768117,0.00950336,79049.0,79048.0,0.17473648]
[1744107769783,0.00950336,79049.0,79048.0,0.18738648]
[1744107770612,0.00950336,79049.0,79048.0,0.17473648]
[1744107773353,0.02215336,79049.0,79048.0,0.17473648]
[1744107773789,0.02215336,79049.0,79048.0,0.16526022]
[1744107774976,0.02215336,79049.0,79048.0,0.30906022]
[1744107775306,0.02215336,79049.0,79048.0,0.31853648]
[1744107775687,0.00950336,79049.0,79048.0,0.31853648]
[1744107775901,0.002,79049.0,79048.0,0.33118648]
[1744107776095,0.00954734,79049.0,79048.0,0.33118648]
[1744107776442,0.00954734,79049.0,79048.0,0.31853648]
[1744107776806,0.02219734,79049.0,79048.0,0.31853648]
[1744107777011,0.02219734,79049.0,79048.0,0.30906022]
[1744107779813,0.00954734,79049.0,79048.0,0.30906022]
[1744107780381,0.00954734,79049.0,79048.0,0.31853022]
[1744107781366,0.00954734,79049.0,79048.0,0.30906022]
[1744107783045,0.002,79049.0,79048.0,0.30906022]
[1744107783555,0.002,79049.0,79048.0,0.31853434]
[1744107783904,0.00987466,79049.0,79048.0,0.31853434]
[1744107785763,0.02252466,79049.0,79048.0,0.31853434]
[1744107786347,0.35553202,79049.0,79048.0,0.29451937]
[1744107786564,0.35966952,79049.0,79048.0,0.29451937]
[1744107786912,0.35966952,79049.0,79048.0,0.30906022]
[1744107787065,0.34701952,79049.0,79048.0,0.30906022]
[1744107787268,0.00701952,79049.0,79048.0,0.30906022]
[1744107787462,0.340336,79050.0,79049.0,0.07219085]
[1744107787664,0.00737679,79050.0,79049.0,0.19844949]
[1744107787874,0.000336,79050.0,79049.0,0.19844949]
[1744107788063,0.00738033,79050.0,79049.0,0.18579949]
[1744107788232,0.000336,79050.0,79049.0,0.18579949]
[1744107788586,0.00737147,79050.0,79049.0,0.20926022]
[1744107789115,0.36002147,79050.0,79049.0,0.16426022]
[1744107789322,0.36002147,79050.0,79049.0,0.27790668]
[1744107790106,0.00737147,79050.0,79049.0,0.53091368]
[1744107790502,0.000336,79050.0,79049.0,0.27790668]
[1744107790670,0.00737147,79050.0,79049.0,0.27790668]
[1744107791272,0.00737147,79050.0,79049.0,0.54356368]
[1744107791549,0.000336,79050.0,79049.0,0.63116416]
[1744107791689,0.000336,79050.0,79049.0,0.5175177]
[1744107792107,0.000336,79050.0,79049.0,0.5185177]
[1744107792953,0.000336,79050.0,79049.0,0.49505697]
[1744107794118,0.000336,79050.0,79049.0,0.54305697]
[1744107795096,0.000336,79050.0,79049.0,0.54405697]
[1744107795288,0.000336,79050.0,79049.0,0.54305697]
[1744107795535,0.000336,79050.0,79049.0,0.54505697]
[1744107795939,0.000336,79050.0,79049.0,0.55586478]
[1744107796340,0.000336,79050.0,79049.0,0.56386478]
[1744107796755,0.000336,79050.0,79049.0,0.55586478]
[1744107796924,0.000168,79051.0,79050.0,0.02719085]
[1744107797139,0.000168,79051.0,79050.0,0.70647931]
[1744107797354,0.000168,79051.0,79050.0,0.70394997]
[1744107798216,0.000168,79051.0,79050.0,0.71294997]
[1744107798756,0.000168,79051.0,79050.0,0.72194997]
[1744107800279,0.000168,79051.0,79050.0,0.86570997]
[1744107803233,0.000168,79051.0,79050.0,0.88932072]
[1744107808037,0.000168,79051.0,79050.0,0.86570997]
[1744107811479,0.000168,79051.0,79050.0,0.889326]
[1744107816690,0.000168,79051.0,79050.0,1.891326]
[1744107817567,0.000168,79051.0,79050.0,1.747566]
[1744107817774,0.000168,79051.0,79050.0,1.891326]
[1744107824191,0.000168,79051.0,79050.0,2.041326]
[1744107834477,0.000168,79051.0,79050.0,2.023326]
[1744107834842,0.000168,79051.0,79050.0,2.032326]
[1744107835178,0.000168,79068.0,79050.0,2.032326]
[1744107835179,0.000168,79068.0,79067.0,0.415597]
[1744107835414,0.000168,79068.0,79067.0,0.72507612]
[1744107836101,0.000168,79068.0,79067.0,0.74923396]
[1744107836549,0.00059094,79068.0,79067.0,0.74923396]
[1744107836998,0.00059094,79068.0,79067.0,0.77284999]
[1744107837213,0.00059094,79068.0,79067.0,0.77684999]
[1744107838303,0.00059094,79068.0,79067.0,0.78284999]
[1744107839271,0.00059094,79068.0,79067.0,1.78484999]
[1744107841275,0.00059094,79068.0,79067.0,1.77884999]
[1744107841496,0.00059094,79068.0,79067.0,1.78084999]
[1744107843009,0.00059094,79068.0,79067.0,1.78484999]
[1744107843897,0.00059094,79068.0,79067.0,1.74534951]
[1744107844336,0.00059094,79068.0,79067.0,1.78485113]
[1744107844688,0.00059094,79068.0,79067.0,1.74534951]
[1744107845107,0.00059094,79068.0,79067.0,1.47975251]
[1744107845317,0.00059094,79068.0,79067.0,1.32975251]
[1744107845558,0.00658569,79068.0,79067.0,1.32975251]
[1744107845750,0.00059094,79068.0,79067.0,1.32975251]
[1744107845974,0.00658569,79068.0,79067.0,1.32975251]
[1744107846284,0.00059094,79068.0,79067.0,1.34239951]
[1744107847028,0.00059094,79068.0,79067.0,1.38190151]
[1744107847726,0.00059094,79068.0,79067.0,1.34239951]
[1744107850666,0.35323794,79068.0,79067.0,1.31521166]
[1744107851159,0.40466702,79068.0,79067.0,1.32975251]
[1744107851577,0.40466702,79068.0,79067.0,1.32375251]
[1744107851817,0.40466702,79068.0,79067.0,1.32175251]
[1744107852509,0.40466702,79068.0,79067.0,1.16349166]
[1744107852764,0.40466702,79068.0,79067.0,1.17133603]
[1744107853431,0.40466702,79068.0,79067.0,1.14872]
[1744107853674,0.40466702,79068.0,79067.0,1.2624763]
[1744107853932,0.40466702,79068.0,79067.0,1.38673494]
[1744107854370,0.40466702,79068.0,79067.0,1.38573494]
[1744107856894,0.40466702,79068.0,79067.0,1.27197864]
[1744107857863,0.00672002,79068.0,79067.0,1.27197864]
[1744107858066,0.00672002,79068.0,79067.0,1.44916649]
[1744107858546,0.00059094,79068.0,79067.0,1.44916649]
[1744107859036,0.00059094,79068.0,79067.0,1.43651949]
[1744107859267,0.00663144,79068.0,79067.0,1.43651949]
[1744107859501,0.00059094,79068.0,79067.0,1.44916649]
[1744107859717,0.00663144,79068.0,79067.0,1.44916649]
[1744107859979,0.00059094,79068.0,79067.0,1.44916649]
[1744107861216,0.00059094,79068.0,79067.0,1.45316649]
[1744107862442,0.00059094,79068.0,79067.0,1.44916649]
[1744107862768,0.00059094,79068.0,79067.0,1.45316649]
[1744107862950,0.00059094,79068.0,79067.0,1.45916649]